bitfinex/quotes_ETHUSD_20251010
["timestamp","ask_amount","ask_price","bid_price","bid_amount"]
[1760099446668,0.002,4352.2,4352.0,2.8048122]
[1760099446969,0.002,4352.2,4352.1,2.87894132]
[1760099447568,0.002,4352.2,4352.1,2.90191873]
[1760099448564,0.002,4352.2,4352.1,7.73400209]
[1760099449967,0.002,4352.2,4352.1,0.5812]
[1760099450169,0.002,4352.2,4352.1,3.56084475]
[1760099450774,0.002,4352.2,4352.1,0.1144]
[1760099450945,0.101,4352.2,4352.1,3.3414]
[1760099451268,3.03228852,4352.2,4352.1,3.227]
[1760099451768,18.63471652,4352.2,4352.1,3.227]
[1760099452272,2.93160533,4351.6,4351.5,0.001]
[1760099452481,6.95274633,4351.6,4351.5,1.447]
[1760099452685,14.69255733,4351.6,4351.5,1.447]
[1760099453379,14.80695733,4351.6,4351.5,1.447]
[1760099453554,17.22213194,4351.6,4351.5,1.447]
[1760099453754,18.65518894,4351.6,4351.5,1.447]
[1760099454793,26.66804994,4351.6,4351.5,1.447]
[1760099454965,26.40061694,4351.6,4351.5,1.447]
[1760099455584,26.40061694,4351.6,4351.5,0.001]
[1760099455793,27.72006494,4351.6,4351.5,0.001]
[1760099456883,35.56087994,4351.6,4351.5,0.001]
[1760099457263,14.33324894,4351.6,4351.5,0.001]
[1760099457661,14.33524894,4351.6,4351.5,0.001]
[1760099457860,41.35395894,4351.6,4351.5,0.001]
[1760099458564,42.1787974,4351.6,4351.5,0.001]
[1760099458766,42.1779974,4351.6,4351.5,0.001]
[1760099459094,43.4869184,4351.6,4351.5,0.001]
[1760099459293,42.66207994,4351.6,4351.5,0.001]
[1760099460867,12.66207994,4351.6,4351.5,0.001]
[1760099461076,42.66207994,4351.6,4351.5,0.001]
[1760099461871,42.75422959,4351.6,4351.5,0.001]
[1760099462989,12.75422959,4351.6,4351.5,0.001]
[1760099463194,43.57906805,4351.6,4351.5,0.001]
[1760099463395,42.75422959,4351.6,4351.5,0.001]
[1760099465479,47.03516518,4351.6,4351.5,0.001]
[1760099468410,46.21122959,4351.6,4351.5,0.001]
[1760099474213,16.21122959,4351.6,4351.5,0.001]
[1760099474510,46.21122959,4351.6,4351.5,0.001]
[1760099474810,46.21122959,4351.6,4351.0,1e-08]
[1760099474811,32.9318694,4351.1,4351.0,1e-08]
[1760099474999,47.91942128,4351.1,4351.0,1e-08]
[1760099475200,48.01912128,4351.1,4351.0,1e-08]
[1760099475583,46.99879532,4351.1,4351.0,1e-08]
[1760099475786,48.10994169,4351.1,4351.0,1e-08]
[1760099477412,47.49263815,4351.1,4351.0,1e-08]
[1760099477618,48.11020329,4351.1,4351.0,1e-08]
[1760099478321,47.49263815,4351.1,4351.0,1e-08]
[1760099480528,48.31572682,4351.1,4351.0,1e-08]
[1760099480918,48.31492682,4351.1,4351.0,1e-08]
[1760099481295,47.49183815,4351.1,4351.0,1e-08]
[1760099481794,42.63677738,4351.1,4351.0,1e-08]
[1760099481999,25.50925172,4351.1,4351.0,1e-08]
[1760099482526,12.54461223,4351.1,4351.0,1e-08]
[1760099482725,42.54461223,4351.1,4351.0,1e-08]
[1760099482932,33.12023823,4351.1,4351.0,1e-08]
[1760099483626,33.61876323,4351.1,4351.0,1e-08]
[1760099483930,33.08076323,4351.1,4351.0,1e-08]
[1760099484701,35.14014623,4351.1,4351.0,1e-08]
[1760099485108,34.44859723,4351.1,4351.0,1e-08]
[1760099485828,11.91101223,4351.1,4351.0,1e-08]
[1760099486043,9.10681223,4351.1,4351.0,1e-08]
[1760099486280,7.44381223,4351.1,4351.0,1e-08]
[1760099486395,9.99741223,4351.1,4351.0,1e-08]
[1760099487106,12.06437383,4351.1,4351.0,1e-08]
[1760099487298,14.36264323,4351.1,4351.0,1e-08]
[1760099487627,36.06560791,4351.1,4351.0,1e-08]
[1760099487847,35.44541223,4351.1,4351.0,1e-08]
[1760099488011,35.44541223,4351.1,4350.8,0.001]
[1760099488012,2.93197504,4350.9,4350.8,0.001]
[1760099488213,14.92878993,4350.9,4350.8,0.001]
[1760099488415,15.00711187,4350.9,4350.8,0.001]
[1760099488611,25.21259687,4350.9,4350.8,0.001]
[1760099488925,20.72351387,4350.9,4350.8,0.001]
[1760099489239,18.02104687,4350.9,4350.8,0.001]
[1760099489599,5.44551787,4350.9,4350.8,0.001]
[1760099489799,13.80061687,4350.9,4350.8,0.001]
[1760099490831,17.26890087,4350.9,4350.8,0.001]
[1760099491811,18.30050187,4350.9,4350.8,0.001]
[1760099492841,26.41992587,4350.9,4350.8,0.001]
[1760099493201,33.51992587,4350.9,4350.8,0.001]
[1760099493920,42.54551787,4350.9,4350.8,0.001]
[1760099496818,12.54551787,4350.9,4350.8,0.001]
[1760099497018,42.54551787,4350.9,4350.8,0.001]
[1760099497432,46.67367509,4350.9,4350.8,0.001]
[1760099498607,46.17983226,4350.9,4350.8,0.001]
[1760099498806,46.67636844,4350.9,4350.8,0.001]
[1760099500005,33.42416444,4350.9,4350.8,0.001]
[1760099500210,31.85580144,4350.9,4350.8,0.001]
[1760099501044,46.67636844,4350.9,4350.8,0.001]
[1760099502019,39.57636844,4350.9,4350.8,0.001]
[1760099502246,39.57636844,4350.9,4350.3,0.001]
[1760099502247,32.9320807,4350.7,4350.3,0.001]
[1760099502566,2.93218636,4350.5,4350.3,0.001]
[1760099502747,35.3701006,4350.5,4350.3,0.001]
[1760099502919,9.45001354,4350.5,4350.3,0.001]
[1760099503118,5.44762254,4350.5,4350.3,0.001]
[1760099503338,24.54869476,4350.5,4350.3,0.001]
[1760099503944,17.43924476,4350.5,4350.3,0.001]
[1760099504150,25.10980676,4350.5,4350.3,0.001]
[1760099504457,21.58040276,4350.5,4350.3,0.001]
[1760099505204,27.11137776,4350.5,4350.3,0.001]
[1760099506228,30.84552358,4350.5,4350.3,0.001]
[1760099506439,31.34197099,4350.5,4350.3,0.001]
[1760099506728,30.99478899,4350.5,4350.3,0.001]
[1760099506922,27.81584599,4350.5,4350.3,0.001]
[1760099507327,30.08944499,4350.5,4350.3,0.001]
[1760099507531,29.84454399,4350.5,4350.3,0.001]
[1760099507828,26.04754799,4350.5,4350.3,0.001]
[1760099508256,21.69293399,4350.5,4350.3,0.001]
[1760099509313,36.90959299,4350.5,4350.3,0.001]
[1760099509806,35.66469399,4350.5,4350.3,0.001]
[1760099510154,32.36513199,4350.5,4350.3,0.001]
[1760099510378,33.51300699,4350.5,4350.3,0.001]
[1760099510893,29.38484977,4350.5,4350.3,0.001]
[1760099511092,12.99423532,4350.5,4350.3,0.001]
[1760099511290,6.27470732,4350.5,4350.3,0.001]
[1760099511591,24.45826277,4350.5,4350.3,0.001]
[1760099512394,24.46209477,4350.5,4350.3,0.001]
[1760099512607,19.82785677,4350.5,4350.3,0.001]
[1760099512793,13.49415777,4350.5,4350.3,0.001]
[1760099512998,13.05115777,4350.5,4350.3,0.001]
[1760099513376,16.05454677,4350.5,4350.3,0.001]
[1760099514511,18.46922877,4350.5,4350.3,0.001]
[1760099515209,17.18663577,4350.5,4350.3,0.001]
[1760099515375,25.92753299,4350.5,4350.3,0.001]
[1760099516382,10.40286454,4350.5,4350.3,0.001]
[1760099516582,32.85714754,4350.5,4350.3,0.001]
[1760099516982,32.61224654,4350.5,4350.3,0.001]
[1760099517383,9.57569099,4350.5,4350.3,0.001]
[1760099517583,4.8522392,4350.4,4350.3,0.001]
[1760099517812,36.59012741,4350.4,4350.3,0.001]
[1760099517986,36.68982741,4350.4,4350.3,0.001]
[1760099518308,36.68982741,4350.4,4350.1,0.91]
[1760099518309,2.29874488,4350.2,4350.1,0.91]
[1760099518515,40.73990134,4350.2,4350.1,0.91]
[1760099518715,29.94565257,4350.0,4349.8,0.001]
[1760099518901,30.44209998,4350.0,4349.8,0.001]
[1760099519095,30.54179998,4350.0,4349.8,0.001]
[1760099519610,31.90440498,4350.0,4349.8,0.001]
[1760099520220,30.90289398,4350.0,4349.8,0.001]
[1760099520393,14.10551358,4350.0,4349.8,0.001]
[1760099520598,22.55719958,4350.0,4349.8,0.001]
[1760099521325,19.62555158,4350.0,4349.8,0.001]
[1760099521509,18.93085558,4350.0,4349.8,0.001]
[1760099521908,17.53451858,4350.0,4349.8,0.001]
[1760099522108,10.62668758,4350.0,4349.8,0.001]
[1760099522509,20.71495958,4350.0,4349.8,0.001]
[1760099522908,18.39044758,4350.0,4349.8,0.001]
[1760099523487,25.54411458,4350.0,4349.8,0.001]
[1760099523690,22.03257158,4350.0,4349.8,0.001]
[1760099524637,12.05727458,4350.0,4349.8,0.001]
[1760099524832,5.34889798,4350.0,4349.8,0.001]
[1760099525130,5.44779798,4350.0,4349.8,0.001]
[1760099525340,0.49644741,4350.0,4349.8,0.001]
[1760099525632,0.1144,4350.0,4349.8,0.001]
[1760099525833,0.1144,4350.3,4349.9,0.4416]
[1760099525994,0.1144,4350.3,4350.0,0.6892742]
[1760099526194,0.1144,4350.3,4350.1,5.373]
[1760099526546,1.08505572,4350.7,4350.2,0.02298744]
[1760099526696,0.1144,4350.6,4350.2,0.02298744]
[1760099527036,0.1144,4350.6,4350.1,5.373]
[1760099527334,0.1144,4350.6,4350.2,3.65403627]
[1760099527772,0.1144,4350.6,4350.2,3.21343627]
[1760099527970,0.1144,4350.6,4350.3,0.4406]
[1760099528173,0.1144,4350.6,4350.4,0.02298639]
[1760099528866,0.002,4350.5,4350.4,0.02298639]
[1760099529032,0.002,4350.5,4349.9,0.556]
[1760099529033,0.12307806,4350.5,4349.9,0.1154]
[1760099529234,2.29878215,4350.2,4350.0,5.373]
[1760099529430,0.0997,4350.1,4350.0,5.373]
[1760099529862,2.39849772,4350.1,4350.0,5.373]
[1760099530879,2.29885057,4350.0,4349.9,0.001]
[1760099531175,4.7146949,4350.0,4349.9,4.2]
[1760099531405,31.2714929,4350.0,4349.9,4.2]
[1760099531674,31.2714929,4350.0,4349.9,0.001]
[1760099531675,16.0314469,4350.0,4349.9,0.001]
[1760099532062,16.72277636,4350.0,4349.9,0.001]
[1760099532269,41.47333536,4350.0,4349.9,0.001]
[1760099532464,39.58252445,4350.0,4349.9,0.001]
[1760099532671,35.80666845,4350.0,4349.9,0.001]
[1760099532872,30.85158745,4350.0,4349.9,0.001]
[1760099533273,31.29758745,4350.0,4349.9,0.001]
[1760099533874,23.17943845,4350.0,4349.9,0.001]
[1760099534061,17.59563845,4350.0,4349.9,0.001]
[1760099534267,16.70363745,4350.0,4349.9,0.001]
[1760099534585,13.85980345,4350.0,4349.9,0.001]
[1760099534894,10.92735288,4350.0,4349.9,0.001]
[1760099535058,9.63024433,4350.0,4349.9,0.001]
[1760099535868,0.002,4350.5,4349.9,0.001]
[1760099536053,0.002,4350.5,4350.2,4.12815722]
[1760099536254,0.002,4350.5,4350.3,5.39598692]
[1760099536448,0.002,4350.5,4350.3,5.373]
[1760099537903,0.0997,4350.4,4350.3,5.373]
[1760099538412,0.002,4350.5,4350.0,0.52741572]
[1760099538413,1.922,4350.5,4350.0,0.1144]
[1760099538566,1.922,4350.5,4350.1,5.373]
[1760099538567,0.0997,4350.4,4350.1,5.373]
[1760099538869,0.2141,4350.4,4350.1,5.373]
[1760099539389,2.5127525,4350.4,4350.1,5.373]
[1760099539776,0.1144,4350.4,4350.1,5.373]
[1760099539973,2.29878802,4350.2,4349.9,0.001]
[1760099540176,2.29879772,4350.1,4350.0,5.372]
[1760099540370,2.39849772,4350.1,4350.0,5.372]
[1760099541098,0.0997,4350.1,4350.0,5.372]
[1760099543078,0.1144,4350.4,4350.0,5.372]
[1760099543079,2.0344,4350.4,4350.0,5.372]
[1760099543295,2.41304033,4350.4,4350.0,5.372]
[1760099544112,2.51274033,4350.4,4350.0,5.372]
[1760099544293,2.3984023,4350.3,4350.0,5.372]
[1760099544615,4.3184023,4350.3,4350.0,5.372]
[1760099544979,2.3984023,4350.3,4350.0,5.372]
[1760099546013,2.3984023,4350.3,4350.0,5.373]
[1760099546391,0.002,4350.1,4350.0,5.373]
[1760099547088,0.002,4350.1,4350.0,5.92194]
[1760099547089,0.0012,4350.1,4350.0,5.92194]
[1760099547417,0.0012,4350.1,4350.0,8.77639057]
[1760099548218,0.0012,4350.1,4350.0,8.66199057]
[1760099549016,0.0012,4350.1,4350.0,8.75411645]
[1760099552008,0.002,4350.5,4350.4,2.2986392]
[1760099552209,0.002,4350.5,4350.4,12.28651791]
[1760099552421,0.002,4350.5,4350.4,12.70473152]
[1760099552837,0.002,4351.0,4350.9,2.29837504]
[1760099553024,0.002,4351.0,4350.9,17.80551601]
[1760099553223,0.002,4351.0,4350.9,18.22373226]
[1760099553424,0.002,4351.0,4350.9,20.27595025]
[1760099554097,0.002,4351.0,4350.9,20.36806128]
[1760099556900,0.002,4351.0,4350.9,4.35059303]
[1760099557142,0.002,4351.0,4350.9,1.914]
[1760099557335,0.002,4351.0,4350.9,5.37]
[1760099557952,0.002,4351.0,4350.9,7.66837504]
[1760099558254,0.002,4351.0,4350.9,8.10957504]
[1760099558455,0.002,4351.0,4350.9,5.86877504]
[1760099558630,0.002,4351.0,4350.9,7.78277504]
[1760099558834,0.002,4351.0,4350.9,5.4844]
[1760099562452,0.002,4351.0,4350.9,7.78277504]
[1760099562751,0.002,4351.0,4350.9,9.27622509]
[1760099569333,0.0012,4351.0,4350.9,9.27622509]
[1760099570725,0.0012,4351.0,4350.9,9.36832827]
[1760099581548,0.0012,4351.0,4350.9,14.22067391]
[1760099581947,0.002,4351.4,4350.9,14.22067391]
[1760099582261,0.002,4351.4,4351.3,7.2649094]
[1760099582447,1e-08,4351.5,4351.4,2.29811095]
[1760099582648,1e-08,4351.5,4351.4,4.69599205]
[1760099582884,1e-08,4351.5,4351.4,4.67301095]
[1760099583372,1e-08,4351.5,4351.4,4.76509929]
[1760099583557,1e-08,4351.5,4351.4,6.54352346]
[1760099584181,0.002,4352.7,4351.5,4.21805814]
[1760099584477,0.002,4352.7,4352.2,2.29768852]
[1760099584659,0.002,4352.7,4352.2,20.44601104]
[1760099584858,0.002,4352.7,4352.3,1.92]
[1760099585060,0.01,4353.9,4352.6,4.96674564]
[1760099585268,0.01,4353.9,4352.8,2.2973718]
[1760099585462,0.01,4353.9,4352.8,2.32034551]
[1760099585657,0.01,4353.9,4352.9,2.29731902]
[1760099585859,0.01,4353.9,4352.9,6.23219221]
[1760099586050,0.01,4353.9,4352.9,7.67324999]
[1760099586669,0.01,4353.9,4352.9,12.52559563]
[1760099586981,0.01,4353.9,4352.9,4.21624999]
[1760099587148,0.01,4353.9,4352.9,8.23661902]
[1760099588496,0.01,4353.9,4352.9,8.87021902]
[1760099589571,0.01,4353.9,4352.9,2.86661902]
[1760099589783,0.01,4353.9,4352.9,14.21661902]
[1760099590364,0.01,4353.9,4352.9,2.86661902]
[1760099590564,0.01,4353.9,4352.9,8.84661902]
[1760099590812,0.1002,4353.6,4352.9,2.0274]
[1760099590963,0.1002,4353.6,4352.9,5.4834]
[1760099591168,0.0012,4353.0,4352.9,5.4834]
[1760099592605,0.0012,4353.0,4352.9,0.1144]
[1760099592805,0.0012,4353.0,4352.9,5.4834]
[1760099598511,0.0012,4353.0,4352.9,7.78071902]
[1760099598669,0.0012,4353.0,4352.9,5.4834]
[1760099599308,0.0012,4353.0,4352.9,0.1144]
[1760099599513,2.39870709,4353.0,4352.9,3.236]
[1760099599801,0.1014,4353.0,4352.9,3.236]
[1760099600003,0.0012,4353.0,4352.9,3.236]
[1760099600479,2.29846625,4353.0,4352.9,3.236]
[1760099600680,2.39866625,4353.0,4352.9,3.236]
[1760099603554,22.45232525,4353.0,4352.9,3.236]
[1760099603759,20.22352602,4352.9,4352.8,0.001]
[1760099604055,20.71804332,4352.9,4352.8,3.458]
[1760099604253,20.81824332,4352.9,4352.8,3.458]
[1760099604645,19.26699032,4352.9,4352.8,3.458]
[1760099605656,22.63825232,4352.9,4352.8,3.458]
[1760099605857,18.00715732,4352.9,4352.8,3.458]
[1760099606585,11.43310732,4352.9,4352.8,3.458]
[1760099606762,8.07775332,4352.9,4352.8,3.458]
[1760099607057,6.90183502,4352.9,4352.8,3.458]
[1760099607564,0.0012,4353.0,4352.8,3.458]
[1760099607857,0.1014,4353.0,4352.8,3.458]
[1760099608066,0.1002,4352.9,4352.8,3.458]
[1760099608265,2.39751902,4352.9,4352.8,3.458]
[1760099608723,5.06546102,4352.9,4352.8,3.458]
[1760099608928,2.39751902,4352.9,4352.8,3.458]
[1760099609129,5.11851902,4352.9,4352.8,3.458]
[1760099609331,7.03851902,4352.9,4352.8,3.458]
[1760099609634,27.94448415,4352.9,4352.8,3.458]
[1760099610036,27.94448415,4352.9,4352.8,0.001]
[1760099610441,11.54498815,4352.9,4352.8,0.001]
[1760099610646,5.34546215,4352.9,4352.8,0.001]
[1760099610847,7.65089415,4352.9,4352.8,0.001]
[1760099611086,5.44566215,4352.9,4352.8,0.001]
[1760099611393,4.95111902,4352.9,4352.8,0.001]
[1760099612252,9.89098602,4352.9,4352.8,0.001]
[1760099613257,9.89018602,4352.9,4352.8,0.001]
[1760099613457,4.21731902,4352.9,4352.8,0.001]
[1760099613658,1.92,4352.9,4352.8,0.001]
[1760099613858,4.33171902,4352.9,4352.8,0.001]
[1760099614064,4.43191902,4352.9,4352.8,0.001]
[1760099614776,2.1346,4352.9,4352.8,0.001]
[1760099614974,2.0344,4352.9,4352.8,0.001]
[1760099615175,1.92,4352.9,4352.8,0.02397371]
[1760099615368,1.92,4352.9,4352.8,0.47677371]
[1760099615569,1.92,4352.9,4352.8,0.02397371]
[1760099616185,0.0012,4353.0,4352.8,2.8655265]
[1760099616391,0.0012,4353.0,4352.9,1.08505265]
[1760099618284,0.0012,4353.0,4352.8,0.1154]
[1760099622389,0.1002,4352.9,4352.8,0.1154]
[1760099622720,0.0012,4353.0,4352.8,0.1154]
[1760099624386,0.0012,4353.0,4352.9,0.02297319]
[1760099624700,0.0012,4353.0,4352.9,0.47577319]
[1760099625289,0.0012,4353.0,4352.9,0.02297319]
[1760099625496,0.0012,4353.0,4352.8,0.1154]
[1760099625903,0.0012,4353.0,4352.9,0.02297319]
[1760099627131,0.0012,4353.0,4352.9,0.47577319]
[1760099627624,0.0012,4353.0,4352.9,3.48986325]
[1760099628006,0.0012,4353.0,4352.9,1.19254423]
[1760099628393,0.0012,4353.0,4352.8,0.1154]
[1760099629123,0.1014,4353.0,4352.8,0.1154]
[1760099629332,0.0012,4353.0,4352.9,5.369]
[1760099629732,0.0012,4353.0,4352.9,8.10801902]
[1760099630113,0.0012,4353.0,4352.9,5.8107]
[1760099631511,0.0012,4353.0,4352.9,5.369]
[1760099635145,0.0012,4353.0,4352.9,8.10801902]
[1760099635356,0.0004,4353.0,4352.9,8.10801902]
[1760099636263,0.0004,4353.0,4352.9,5.8107]
[1760099636750,0.0004,4353.0,4352.9,5.369]
[1760099637770,0.0004,4353.0,4352.9,5.8058]
[1760099637981,0.0004,4353.0,4352.9,9.15472013]
[1760099639231,0.0004,4353.0,4352.9,3.78572013]
[1760099639430,0.0004,4353.0,4352.9,8.10311902]
[1760099641649,0.0004,4353.0,4352.9,5.369]
[1760099641822,0.0004,4353.0,4352.9,7.66631902]
[1760099642157,0.0004,4353.0,4352.8,0.1154]
[1760099642354,0.0004,4353.0,4352.9,5.369]
[1760099642555,0.0004,4353.0,4352.8,0.1154]
[1760099642556,0.1014,4352.9,4352.8,0.1154]
[1760099642758,0.1014,4352.9,4352.8,5.37]
[1760099643828,2.39871902,4352.9,4352.8,5.37]
[1760099644164,2.89479356,4352.9,4352.8,5.37]
[1760099644325,0.1014,4352.9,4352.8,5.37]
[1760099644859,0.49647454,4353.0,4352.8,5.37]
[1760099645059,0.0004,4353.0,4352.8,5.37]
[1760099645356,2.39908293,4353.0,4352.8,5.37]
[1760099645557,2.89523217,4353.0,4352.8,5.37]
[1760099645734,2.39871902,4352.9,4352.8,5.37]
[1760099647453,0.1014,4352.9,4352.8,5.37]
[1760099647649,0.49654924,4353.0,4352.8,5.37]
[1760099647650,0.0004,4353.0,4352.8,5.37]
[1760099648365,0.0004,4353.0,4352.9,0.02297319]
[1760099648545,0.0004,4353.0,4352.8,5.37]
[1760099650663,0.0004,4353.0,4352.9,0.02297319]
[1760099651369,0.0004,4353.0,4352.9,0.45977319]
[1760099652247,0.0004,4353.0,4352.9,0.02297319]
[1760099652859,0.0004,4353.0,4352.9,0.1144]
[1760099653059,0.0004,4353.0,4352.9,0.13737319]
[1760099654065,0.0004,4353.0,4352.9,2.41171902]
[1760099654376,0.0004,4353.0,4352.9,4.26855684]
[1760099655972,0.0004,4353.0,4352.9,4.29153003]
[1760099656571,0.0004,4353.0,4352.9,4.26855684]
[1760099657591,0.0016,4353.5,4353.1,2.29718889]
[1760099657881,0.0016,4353.5,4353.2,3.457]
[1760099658078,0.0016,4353.5,4353.3,0.1144]
[1760099658283,0.0016,4353.5,4353.4,3.457]
[1760099660984,0.0016,4353.5,4353.4,3.47997055]
[1760099662193,0.0016,4353.5,4353.4,11.03864283]
[1760099662393,0.0016,4353.5,4353.4,11.01567228]
[1760099668017,0.0016,4353.5,4353.4,3.43740173]
[1760099668291,0.0016,4353.5,4353.4,14.78640173]
[1760099671076,0.0016,4353.5,4353.4,3.43740173]
[1760099671274,0.0016,4353.5,4353.4,14.78540173]
[1760099672968,0.0016,4353.5,4353.4,3.43740173]
[1760099673259,0.0016,4353.5,4353.4,14.19625517]
[1760099674188,0.0016,4353.5,4353.4,11.4624]
[1760099674487,0.0016,4353.5,4353.4,2.0274]
[1760099674694,0.0016,4353.5,4353.4,7.78045517]
[1760099675264,0.0016,4353.5,4353.4,5.4834]
[1760099675659,0.0016,4353.5,4353.4,7.78045517]
[1760099676469,0.0016,4353.5,4353.4,5.4834]
[1760099676995,0.0016,4353.5,4353.4,7.78045517]
[1760099677894,0.0016,4353.5,4353.4,9.82311657]
[1760099679512,0.0008,4353.5,4353.4,9.82311657]
[1760099685815,0.0008,4353.5,4353.4,4.45411657]
[1760099686016,0.0008,4353.5,4353.4,14.19545517]
[1760099697699,0.0008,4353.5,4353.4,2.84845517]
[1760099698028,0.0008,4353.5,4353.4,14.21742572]
[1760099698336,0.0008,4353.5,4353.4,14.19445517]
[1760099701636,0.012,4353.9,4353.8,2.29684413]
[1760099701938,0.012,4353.9,4353.8,5.75184413]
[1760099702121,0.012,4353.9,4353.8,6.18224413]
[1760099702306,0.012,4353.9,4353.8,6.29664413]
[1760099703334,0.012,4353.9,4353.8,7.15599987]
[1760099706339,0.002,4354.0,4353.9,2.29679138]
[1760099706542,0.002,4354.0,4353.9,2.75015929]
[1760099707239,0.002,4354.0,4353.9,6.18219138]
[1760099707440,0.002,4354.0,4353.9,14.07319138]
[1760099707620,0.002,4354.0,4353.9,16.03726183]
[1760099716389,0.002,4354.0,4353.9,4.69126183]
[1760099716539,0.002,4354.0,4353.9,14.07219138]
[1760099717850,0.002,4354.0,4353.9,7.891]
[1760099718059,0.002,4354.0,4353.9,13.64179138]
[1760099718273,0.002,4354.0,4353.9,14.07219138]
[1760099718838,0.002,4354.0,4353.9,11.7754]
[1760099719039,0.002,4354.0,4353.9,1.913]
[1760099719268,0.002,4354.0,4353.9,5.367]
[1760099720040,2.29875596,4354.0,4353.8,0.1144]
[1760099720253,0.0996,4353.9,4353.5,0.1144]
[1760099720458,0.258,4353.9,4353.6,4.435]
[1760099720664,0.002,4354.0,4353.6,4.435]
[1760099723781,2.55490312,4353.9,4353.6,4.435]
[1760099723985,0.1591,4353.9,4353.6,4.435]
[1760099724184,0.002,4354.0,4353.6,4.435]
[1760099724961,0.2581,4353.9,4353.6,4.435]
[1760099725161,0.1008,4353.8,4353.6,4.435]
[1760099725476,0.1008,4353.8,4353.6,4.436]
[1760099726100,2.29689208,4353.8,4353.7,5.368]
[1760099726677,2.39769208,4353.8,4353.7,5.368]
[1760099729171,2.29875469,4354.0,4353.7,5.368]
[1760099729172,0.002,4354.0,4353.7,5.368]
[1760099729495,0.1033,4354.0,4353.7,5.368]
[1760099729708,0.002,4354.0,4353.7,5.368]
[1760099729863,0.002,4354.0,4353.9,0.1144]
[1760099730196,0.002,4354.0,4353.9,3.5694]
[1760099730624,0.002,4354.0,4353.9,5.88915929]
[1760099730769,0.002,4354.0,4353.9,3.5694]
[1760099730964,0.002,4354.0,4353.9,3.59236791]
[1760099732700,0.002,4354.0,4353.9,3.5694]
[1760099733766,0.002,4354.0,4353.9,6.33095929]
[1760099733963,0.002,4354.0,4353.9,7.36217635]
[1760099734197,0.002,4354.0,4353.9,6.30799138]
[1760099739819,0.002,4354.0,4353.9,4.0112]
[1760099740021,0.002,4354.0,4353.9,3.5694]
[1760099740521,0.002,4354.0,4353.9,5.86619138]
[1760099741228,0.002,4354.0,4353.9,6.30799138]
[1760099742122,0.002,4354.0,4353.9,4.0112]
[1760099742327,0.002,4354.0,4353.9,5.86619138]
[1760099743222,0.002,4354.0,4353.9,3.5694]
[1760099743398,0.002,4354.0,4353.9,5.86619138]
[1760099743720,0.002,4354.0,4353.9,11.47956744]
[1760099743888,0.002,4354.0,4353.9,11.36516744]
[1760099744089,0.002,4354.0,4353.9,11.47956744]
[1760099744291,0.002,4354.0,4353.9,1.16628938]
[1760099744620,0.002,4354.0,4353.9,14.19899138]
[1760099746022,0.0012,4354.0,4353.9,14.19899138]
[1760099749531,0.0012,4354.0,4353.9,0.1144]
[1760099749732,0.0012,4354.0,4353.9,13.75719138]
[1760099750030,0.0012,4354.0,4353.9,14.18879138]
[1760099751317,0.0012,4354.0,4353.9,11.4604]
[1760099753547,0.0012,4354.0,4353.9,13.75719138]
[1760099753927,0.0012,4354.0,4353.9,11.4604]
[1760099754331,0.1025,4354.0,4353.8,0.001]
[1760099754534,0.0012,4354.0,4353.9,5.368]
[1760099755935,0.1025,4354.0,4353.9,5.368]
[1760099757046,2.39923863,4354.0,4353.9,5.368]
[1760099757554,4.8362539,4354.0,4353.9,5.368]
[1760099757738,4.21679138,4353.9,4353.8,0.001]
[1760099757930,3.05102859,4353.9,4353.8,5.369]
[1760099758859,3.07240665,4353.9,4353.8,5.369]
[1760099759360,0.77561527,4353.9,4353.8,5.369]
[1760099759654,2.41683721,4354.0,4353.8,5.369]
[1760099759844,0.0012,4354.0,4353.9,0.02296791]
[1760099762136,0.0012,4354.0,4353.9,3.61178918]
[1760099762336,0.0012,4354.0,4353.9,3.72618918]
[1760099764162,0.0012,4354.0,4353.9,3.70322127]
[1760099767459,0.0012,4354.0,4353.9,3.72618918]
[1760099767833,0.0004,4354.0,4353.9,3.70322127]
[1760099769961,0.0004,4354.0,4353.9,0.1144]
[1760099770839,0.0004,4354.0,4353.9,2.41119138]
[1760099771043,0.0004,4354.0,4353.9,2.87629138]
[1760099771273,0.0004,4354.0,4353.9,2.41119138]
[1760099771681,0.0004,4354.0,4353.9,0.1144]
[1760099773945,0.0004,4354.0,4353.9,2.43415929]
[1760099774146,0.0004,4354.0,4353.9,7.7993619]
[1760099774378,0.0004,4354.0,4353.9,3.65670731]
[1760099774564,0.0004,4354.0,4353.9,3.67967522]
[1760099776300,0.0004,4354.0,4353.9,7.7993619]
[1760099776456,0.0004,4354.0,4353.9,7.77639399]
[1760099779052,0.0004,4354.0,4353.9,9.69639399]
[1760099779252,0.0004,4354.0,4353.9,5.57670731]
[1760099789597,0.0004,4354.0,4353.9,9.69639399]
[1760099789978,0.0016,4354.4,4354.3,2.29658039]
[1760099790169,0.0016,4354.4,4354.3,6.32530353]
[1760099790364,0.0016,4354.4,4354.3,6.77630353]
[1760099798980,1e-08,4354.5,4354.4,2.29652765]
[1760099799185,1e-08,4354.5,4354.4,4.69049292]
[1760099799416,1e-08,4354.5,4354.4,6.43113374]
[1760099800314,1e-08,4354.5,4354.4,10.55082042]
[1760099800477,1e-08,4354.5,4354.4,6.43113374]
[1760099801376,1e-08,4354.5,4354.4,17.77513374]
[1760099803608,1e-08,4354.5,4354.4,21.89482042]
[1760099805600,1e-08,4354.5,4354.4,17.77513374]